[Event "*** SCC Grand Prix: Titled Tuesday Blitz"]
[Site "Chess.com"]
[Date "2020.10.13"]
[Round "4"]
[White "Msb2"]
[Black "AliKa2810"]
[Result "1-0"]
[WhiteElo "2931"]
[BlackElo "2591"]
[TimeControl "180+1"]
[EndTime "10:39:12 PDT"]
[Termination "Msb2 won by resignation"]

1. d4 {[%clk 0:03:00.6]} 1... Nf6 {[%clk 0:02:59.4]} 2. c4 {[%clk 0:03:00.1]}
2... g6 {[%clk 0:02:58.8]} 3. Nc3 {[%clk 0:03:00.6]} 3... Bg7 {[%clk 0:02:59.3]}
4. e4 {[%clk 0:03:01]} 4... d6 {[%clk 0:02:59.9]} 5. Be2 {[%clk 0:03:00]} 5...
O-O {[%clk 0:03:00.1]} 6. Be3 {[%clk 0:03:00.7]} 6... e5 {[%clk 0:02:59.3]} 7.
d5 {[%clk 0:03:01]} 7... Na6 {[%clk 0:02:58]} 8. h4 {[%clk 0:03:00]} 8... Nc5
{[%clk 0:02:56.7]} 9. Qc2 {[%clk 0:03:00.6]} 9... a5 {[%clk 0:02:56.4]} 10. h5
{[%clk 0:03:00.6]} 10... c6 {[%clk 0:02:53.9]} 11. h6 {[%clk 0:02:51.6]} 11...
Bh8 {[%clk 0:02:53.3]} 12. Rd1 {[%clk 0:02:51.2]} 12... cxd5 {[%clk 0:02:49.2]}
13. cxd5 {[%clk 0:02:46.9]} 13... Ne8 {[%clk 0:02:48.3]} 14. Nf3 {[%clk
0:02:44.6]} 14... b6 {[%clk 0:02:44.2]} 15. Bb5 {[%clk 0:02:37.8]} 15... f5
{[%clk 0:02:41.5]} 16. Bc6 {[%clk 0:02:28.3]} 16... Ra7 {[%clk 0:02:37]} 17. Nb5
{[%clk 0:02:24.7]} 17... fxe4 {[%clk 0:02:23.5]} 18. Ng5 {[%clk 0:02:17]} 18...
Nd3+ {[%clk 0:02:15.5]} 19. Kf1 {[%clk 0:01:59.6]} 19... Nxf2 {[%clk 0:02:13.8]}
20. Bxf2 {[%clk 0:01:51.1]} 20... Qxg5 {[%clk 0:02:12.9]} 21. Nxa7 {[%clk
0:01:08]} 21... Ba6+ {[%clk 0:01:44.4]} 22. Kg1 {[%clk 0:00:54.8]} 22... e3
{[%clk 0:01:43.6]} 23. Bh4 {[%clk 0:00:55.3]} 23... Qg4 {[%clk 0:01:31.7]} 24.
Bb5 {[%clk 0:00:30.9]} 24... Bxb5 {[%clk 0:01:12.3]} 25. Nxb5 {[%clk 0:00:31.8]}
25... e2 {[%clk 0:01:12.6]} 26. Re1 {[%clk 0:00:32.3]} 26... Bf6 {[%clk
0:00:27.8]} 27. Qxe2 {[%clk 0:00:30.1]} 27... Qb4 {[%clk 0:00:18]} 28. Bxf6
{[%clk 0:00:28.5]} 28... Nxf6 {[%clk 0:00:18]} 29. Rh3 {[%clk 0:00:26.7]} 29...
Ng4 {[%clk 0:00:15.2]} 30. Rc1 {[%clk 0:00:18.9]} 30... Rf2 {[%clk 0:00:05.5]}
31. Rc8+ {[%clk 0:00:17]} 31... Kf7 {[%clk 0:00:06.1]} 32. Rf3+ {[%clk
0:00:17.6]} 1-0

[Event "*** SCC Grand Prix: Titled Tuesday Blitz"]
[Site "Chess.com"]
[Date "2020.10.13"]
[Round "4"]
[White "AttilaTurzo"]
[Black "CzechmVIII"]
[Result "1-0"]
[WhiteElo "2392"]
[BlackElo "2163"]
[TimeControl "180+1"]
[EndTime "10:39:12 PDT"]
[Termination "AttilaTurzo won on time"]

1. d4 {[%clk 0:03:00.9]} 1... Nf6 {[%clk 0:02:59.3]} 2. Nf3 {[%clk 0:03:00.4]}
2... c5 {[%clk 0:02:59.3]} 3. d5 {[%clk 0:02:57.7]} 3... b5 {[%clk 0:02:57.2]}
4. Bg5 {[%clk 0:02:57.5]} 4... g6 {[%clk 0:02:55.6]} 5. Bxf6 {[%clk 0:02:54.8]}
5... exf6 {[%clk 0:02:56.5]} 6. e4 {[%clk 0:02:53.4]} 6... b4 {[%clk 0:02:56.8]}
7. Nbd2 {[%clk 0:02:51.8]} 7... Bg7 {[%clk 0:02:54.4]} 8. Nc4 {[%clk 0:02:49.7]}
8... d6 {[%clk 0:02:52.5]} 9. Bd3 {[%clk 0:02:49.2]} 9... O-O {[%clk 0:02:48.7]}
10. O-O {[%clk 0:02:49.3]} 10... Bb7 {[%clk 0:02:43.8]} 11. Be2 {[%clk
0:02:17.2]} 11... Re8 {[%clk 0:02:32.6]} 12. Qd3 {[%clk 0:02:15]} 12... Ba6
{[%clk 0:01:54.6]} 13. a3 {[%clk 0:02:05.9]} 13... Nd7 {[%clk 0:01:34.5]} 14.
axb4 {[%clk 0:02:02.9]} 14... Bxc4 {[%clk 0:01:34.6]} 15. Qxc4 {[%clk
0:02:02.7]} 15... cxb4 {[%clk 0:01:35]} 16. Qxb4 {[%clk 0:02:00.6]} 16... Nc5
{[%clk 0:01:19]} 17. Bd3 {[%clk 0:01:56.9]} 17... Rb8 {[%clk 0:01:11.8]} 18. Qc4
{[%clk 0:01:38.5]} 18... Rxb2 {[%clk 0:01:05.4]} 19. Rxa7 {[%clk 0:01:37.9]}
19... Qb6 {[%clk 0:01:04.1]} 20. Ra2 {[%clk 0:01:23.9]} 20... Rb4 {[%clk
0:00:34.5]} 21. Qc3 {[%clk 0:01:09.2]} 21... f5 {[%clk 0:00:29.4]} 22. e5 {[%clk
0:01:07]} 22... Bxe5 {[%clk 0:00:14.3]} 23. Qd2 {[%clk 0:00:58.5]} 23... Bg7
{[%clk 0:00:11.7]} 24. h3 {[%clk 0:00:49.6]} 24... Rb1 {[%clk 0:00:10.4]} 25.
Kh2 {[%clk 0:00:31.4]} 25... Rxf1 {[%clk 0:00:09.6]} 26. Bxf1 {[%clk 0:00:31.3]}
26... Ne4 {[%clk 0:00:08.5]} 27. Qe3 {[%clk 0:00:24.8]} 27... Qxe3 {[%clk
0:00:07.1]} 28. fxe3 {[%clk 0:00:25.7]} 28... Nc3 {[%clk 0:00:05.9]} 29. Ra7
{[%clk 0:00:22.7]} 29... h6 {[%clk 0:00:04.8]} 30. Nd4 {[%clk 0:00:19.9]} 30...
Rxe3 {[%clk 0:00:03.5]} 31. Nc6 {[%clk 0:00:19.4]} 31... Re1 {[%clk 0:00:02.5]}
32. Bc4 {[%clk 0:00:18.2]} 32... Bd4 {[%clk 0:00:01.5]} 33. Nxd4 {[%clk
0:00:17.5]} 1-0

[Event "*** SCC Grand Prix: Titled Tuesday Blitz"]
[Site "Chess.com"]
[Date "2020.10.13"]
[Round "4"]
[White "Region_07"]
[Black "aisha_zakirova"]
[Result "1-0"]
[WhiteElo "2340"]
[BlackElo "2159"]
[TimeControl "180+1"]
[EndTime "10:39:12 PDT"]
[Termination "Region_07 won by resignation"]

1. d4 {[%clk 0:03:00.4]} 1... Nf6 {[%clk 0:02:58.6]} 2. Bg5 {[%clk 0:03:00.9]}
2... Ne4 {[%clk 0:02:57.1]} 3. h4 {[%clk 0:03:00.2]} 3... Nxg5 {[%clk
0:02:49.8]} 4. hxg5 {[%clk 0:02:59.9]} 4... e5 {[%clk 0:02:48.3]} 5. g6 {[%clk
0:02:52.7]} 5... fxg6 {[%clk 0:02:41]} 6. dxe5 {[%clk 0:02:52.4]} 6... d6 {[%clk
0:02:34.1]} 7. Nf3 {[%clk 0:02:52]} 7... Nc6 {[%clk 0:02:30.5]} 8. Nc3 {[%clk
0:02:42.4]} 8... Bg4 {[%clk 0:02:17.4]} 9. e3 {[%clk 0:02:33.3]} 9... Nxe5
{[%clk 0:02:10.6]} 10. Be2 {[%clk 0:02:29.3]} 10... Nxf3+ {[%clk 0:01:59.3]} 11.
Bxf3 {[%clk 0:02:22.3]} 11... Bxf3 {[%clk 0:01:58.5]} 12. Qxf3 {[%clk
0:02:23.2]} 12... c6 {[%clk 0:01:56.9]} 13. O-O-O {[%clk 0:02:20.9]} 13... Qf6
{[%clk 0:01:54.3]} 14. Qg4 {[%clk 0:02:10.6]} 14... Be7 {[%clk 0:01:45.2]} 15.
Ne4 {[%clk 0:02:09.6]} 15... Qe5 {[%clk 0:01:41.9]} 16. Rxh7 {[%clk 0:01:57.4]}
16... Rxh7 {[%clk 0:01:13.2]} 17. Qxg6+ {[%clk 0:01:57.1]} 17... Kd7 {[%clk
0:01:06.8]} 18. Qxh7 {[%clk 0:01:55.2]} 18... d5 {[%clk 0:01:03.2]} 19. Nc3
{[%clk 0:01:29.1]} 19... Bb4 {[%clk 0:00:50.7]} 20. Ne2 {[%clk 0:01:23.1]} 20...
Rf8 {[%clk 0:00:47.2]} 21. Nf4 {[%clk 0:01:22.5]} 21... Qf6 {[%clk 0:00:07.5]}
22. Rxd5+ {[%clk 0:00:54.7]} 22... cxd5 {[%clk 0:00:06.2]} 23. Nxd5 {[%clk
0:00:51.1]} 23... Qxf2 {[%clk 0:00:05.5]} 24. c3 {[%clk 0:00:27.9]} 24... Qe1+
{[%clk 0:00:04.5]} 25. Kc2 {[%clk 0:00:28.1]} 25... Rf2+ {[%clk 0:00:05.4]} 26.
Kb3 {[%clk 0:00:28.3]} 26... Qd1+ {[%clk 0:00:06.3]} 27. Kc4 {[%clk 0:00:27.9]}
27... Qxd5+ {[%clk 0:00:06.9]} 28. Kxd5 {[%clk 0:00:27.5]} 28... Rd2+ {[%clk
0:00:07.8]} 29. Kc4 {[%clk 0:00:27.2]} 29... Rxb2 {[%clk 0:00:08]} 30. cxb4
{[%clk 0:00:23.1]} 30... Rxg2 {[%clk 0:00:06.3]} 31. Qh3+ {[%clk 0:00:21.8]} 1-0

[Event "*** SCC Grand Prix: Titled Tuesday Blitz"]
[Site "Chess.com"]
[Date "2020.10.13"]
[Round "4"]
[White "KatarinaOstojic"]
[Black "kintoho"]
[Result "0-1"]
[WhiteElo "2332"]
[BlackElo "2505"]
[TimeControl "180+1"]
[EndTime "10:39:14 PDT"]
[Termination "kintoho won by resignation"]

1. d4 {[%clk 0:03:00.9]} 1... g6 {[%clk 0:02:58]} 2. e4 {[%clk 0:02:59.9]} 2...
Bg7 {[%clk 0:02:57.8]} 3. Nc3 {[%clk 0:03:00.6]} 3... c6 {[%clk 0:02:58]} 4. f4
{[%clk 0:02:58.4]} 4... d5 {[%clk 0:02:57.5]} 5. e5 {[%clk 0:02:58.9]} 5... Qb6
{[%clk 0:02:57.5]} 6. Nf3 {[%clk 0:02:58.5]} 6... Bg4 {[%clk 0:02:57.2]} 7. Be2
{[%clk 0:02:58.5]} 7... Nh6 {[%clk 0:02:55.6]} 8. O-O {[%clk 0:02:55.7]} 8...
Nf5 {[%clk 0:02:54.9]} 9. Na4 {[%clk 0:02:51.9]} 9... Qa5 {[%clk 0:02:54]} 10.
c3 {[%clk 0:02:51.8]} 10... O-O {[%clk 0:02:53.8]} 11. h3 {[%clk 0:02:51.5]}
11... Bxf3 {[%clk 0:02:52.9]} 12. Bxf3 {[%clk 0:02:52.4]} 12... e6 {[%clk
0:02:48.9]} 13. Bd2 {[%clk 0:02:51.5]} 13... Nd7 {[%clk 0:02:44.5]} 14. b4
{[%clk 0:02:30.6]} 14... Qd8 {[%clk 0:02:43.9]} 15. Nb2 {[%clk 0:02:25]} 15...
f6 {[%clk 0:02:40.4]} 16. Qe1 {[%clk 0:02:24.3]} 16... fxe5 {[%clk 0:02:36.9]}
17. fxe5 {[%clk 0:02:25.2]} 17... Bh6 {[%clk 0:02:27]} 18. Bxh6 {[%clk
0:02:21.5]} 18... Nxh6 {[%clk 0:02:26.5]} 19. Nd3 {[%clk 0:02:22]} 19... Qg5
{[%clk 0:02:25.7]} 20. h4 {[%clk 0:02:04.7]} 20... Qe7 {[%clk 0:02:25.5]} 21. h5
{[%clk 0:01:55.2]} 21... Qg5 {[%clk 0:02:22.6]} 22. hxg6 {[%clk 0:01:54.7]}
22... hxg6 {[%clk 0:02:22.8]} 23. Qc1 {[%clk 0:01:52.6]} 23... Qh4 {[%clk
0:02:18.9]} 24. Be2 {[%clk 0:01:47.6]} 24... Rxf1+ {[%clk 0:02:17.2]} 25. Qxf1
{[%clk 0:01:48.5]} 25... Rf8 {[%clk 0:02:12.6]} 26. Qe1 {[%clk 0:01:48.5]} 26...
Qg5 {[%clk 0:02:12.5]} 27. Kh2 {[%clk 0:01:34.3]} 27... Kg7 {[%clk 0:02:03]} 28.
Qg3 {[%clk 0:01:33]} 28... Qd2 {[%clk 0:01:59.5]} 29. Qe1 {[%clk 0:01:32.1]}
29... Qe3 {[%clk 0:01:56.2]} 30. Bf1 {[%clk 0:01:27.8]} 30... Qg5 {[%clk
0:01:49.6]} 31. Qg3 {[%clk 0:01:23.7]} 31... Ng4+ {[%clk 0:01:48.8]} 32. Kg1
{[%clk 0:01:22.8]} 32... Qe3+ {[%clk 0:01:34.5]} 33. Qxe3 {[%clk 0:01:22.1]}
33... Nxe3 {[%clk 0:01:34.6]} 34. Be2 {[%clk 0:01:23]} 34... a5 {[%clk
0:01:32.3]} 35. Rb1 {[%clk 0:01:17]} 35... axb4 {[%clk 0:01:32]} 36. Rxb4 {[%clk
0:01:15.9]} 36... b6 {[%clk 0:01:30]} 37. Ra4 {[%clk 0:01:16.2]} 37... Rf7
{[%clk 0:01:26.2]} 38. Ra7 {[%clk 0:01:16.2]} 38... Nxe5 {[%clk 0:01:25.4]} 39.
Rxf7+ {[%clk 0:01:14.7]} 39... Nxf7 {[%clk 0:01:25.3]} 40. Nb4 {[%clk
0:01:15.1]} 40... c5 {[%clk 0:01:23.6]} 41. dxc5 {[%clk 0:01:16]} 41... bxc5
{[%clk 0:01:23.7]} 42. Na6 {[%clk 0:01:16.9]} 42... c4 {[%clk 0:01:23.1]} 43.
Nc7 {[%clk 0:01:17.2]} 43... Kf6 {[%clk 0:01:21.8]} 44. a4 {[%clk 0:01:17.8]}
44... Nd8 {[%clk 0:01:15.3]} 45. a5 {[%clk 0:01:17.8]} 45... Nc6 {[%clk
0:01:15.3]} 46. a6 {[%clk 0:01:18.3]} 46... Na7 {[%clk 0:01:15]} 47. Kf2 {[%clk
0:01:17.2]} 47... Nf5 {[%clk 0:01:13.1]} 48. Bd1 {[%clk 0:01:17.3]} 48... Nd6
{[%clk 0:01:10.9]} 49. Ba4 {[%clk 0:01:17.8]} 49... Ne4+ {[%clk 0:01:09.6]} 50.
Ke3 {[%clk 0:01:17.7]} 50... Nxc3 {[%clk 0:01:09.6]} 51. Bd7 {[%clk 0:01:15.5]}
51... e5 {[%clk 0:01:06.7]} 52. Be8 {[%clk 0:01:09.1]} 52... d4+ {[%clk
0:01:05.8]} 53. Kd2 {[%clk 0:01:09.3]} 53... e4 {[%clk 0:01:03.2]} 54. Bd7
{[%clk 0:00:54]} 54... e3+ {[%clk 0:01:02.7]} 55. Ke1 {[%clk 0:00:51.5]} 55...
d3 {[%clk 0:01:02.6]} 56. Bg4 {[%clk 0:00:43.9]} 56... d2+ {[%clk 0:01:00]} 57.
Kf1 {[%clk 0:00:44.4]} 57... d1=Q+ {[%clk 0:00:59.4]} 58. Bxd1 {[%clk 0:00:45]}
58... Nxd1 {[%clk 0:00:59.6]} 59. Ke2 {[%clk 0:00:45.9]} 59... Nc3+ {[%clk
0:00:55.6]} 60. Kxe3 {[%clk 0:00:46.8]} 60... Ke5 {[%clk 0:00:55.8]} 61. g4
{[%clk 0:00:44.3]} 61... Nd5+ {[%clk 0:00:55.1]} 62. Nxd5 {[%clk 0:00:44.3]}
62... Kxd5 {[%clk 0:00:55.1]} 63. Kf4 {[%clk 0:00:45.2]} 63... c3 {[%clk
0:00:54.8]} 64. Kg5 {[%clk 0:00:46.1]} 64... c2 {[%clk 0:00:54.8]} 65. Kxg6
{[%clk 0:00:47]} 65... c1=Q {[%clk 0:00:55]} 0-1

[Event "*** SCC Grand Prix: Titled Tuesday Blitz"]
[Site "Chess.com"]
[Date "2020.10.13"]
[Round "4"]
[White "elisak43"]
[Black "vovachesss"]
[Result "0-1"]
[WhiteElo "2510"]
[BlackElo "2679"]
[TimeControl "180+1"]
[EndTime "10:39:15 PDT"]
[Termination "vovachesss won on time"]

1. Nf3 {[%clk 0:03:00.9]} 1... Nc6 {[%clk 0:02:58.2]} 2. d4 {[%clk 0:02:59.7]}
2... d6 {[%clk 0:02:57]} 3. c4 {[%clk 0:02:59.6]} 3... g6 {[%clk 0:02:56]} 4. d5
{[%clk 0:02:59.3]} 4... Ne5 {[%clk 0:02:54.4]} 5. Nxe5 {[%clk 0:02:58.8]} 5...
dxe5 {[%clk 0:02:55.3]} 6. e4 {[%clk 0:02:57.8]} 6... Bg7 {[%clk 0:02:55]} 7.
Nc3 {[%clk 0:02:58.2]} 7... Nf6 {[%clk 0:02:54.8]} 8. f3 {[%clk 0:02:57.9]} 8...
O-O {[%clk 0:02:55]} 9. Be3 {[%clk 0:02:58.3]} 9... e6 {[%clk 0:02:53.2]} 10.
Rc1 {[%clk 0:02:55.9]} 10... exd5 {[%clk 0:02:48.7]} 11. cxd5 {[%clk 0:02:55.9]}
11... a6 {[%clk 0:02:48.8]} 12. Be2 {[%clk 0:02:53]} 12... Ne8 {[%clk
0:02:48.2]} 13. O-O {[%clk 0:02:52]} 13... Nd6 {[%clk 0:02:48.4]} 14. Na4 {[%clk
0:02:42.2]} 14... b6 {[%clk 0:02:40.1]} 15. b3 {[%clk 0:02:10.3]} 15... Bd7
{[%clk 0:02:37]} 16. Nb2 {[%clk 0:02:10.1]} 16... f5 {[%clk 0:02:28.2]} 17. Qc2
{[%clk 0:02:07.7]} 17... Ra7 {[%clk 0:02:23.3]} 18. Nc4 {[%clk 0:02:06.2]} 18...
Qe7 {[%clk 0:02:02.5]} 19. a4 {[%clk 0:01:51.1]} 19... f4 {[%clk 0:02:00]} 20.
Bf2 {[%clk 0:01:48.5]} 20... a5 {[%clk 0:01:55.9]} 21. Nxa5 {[%clk 0:01:37.1]}
21... Rxa5 {[%clk 0:01:51.9]} 22. Qxc7 {[%clk 0:01:36.9]} 22... Raa8 {[%clk
0:01:42.3]} 23. Rc6 {[%clk 0:00:49.8]} 23... Nc8 {[%clk 0:00:51.8]} 24. Rc2
{[%clk 0:00:28.9]} 24... Ra7 {[%clk 0:00:48.5]} 25. Qb8 {[%clk 0:00:25.2]} 25...
Ra5 {[%clk 0:00:28.6]} 26. Bxb6 {[%clk 0:00:23.5]} 26... Nxb6 {[%clk 0:00:27.8]}
27. Qxb6 {[%clk 0:00:23.9]} 27... Raa8 {[%clk 0:00:25.6]} 28. Rc7 {[%clk
0:00:20.3]} 28... Rfb8 {[%clk 0:00:26]} 29. Qe6+ {[%clk 0:00:09.4]} 29... Qxe6
{[%clk 0:00:23.3]} 30. dxe6 {[%clk 0:00:10.1]} 30... Bxe6 {[%clk 0:00:24.2]} 31.
Bc4 {[%clk 0:00:06.1]} 31... Bxc4 {[%clk 0:00:24.1]} 32. bxc4 {[%clk 0:00:06.6]}
32... Rxa4 {[%clk 0:00:24.3]} 33. Rd1 {[%clk 0:00:07.5]} 33... Bf8 {[%clk
0:00:20.9]} 0-1

[Event "*** SCC Grand Prix: Titled Tuesday Blitz"]
[Site "Chess.com"]
[Date "2020.10.13"]
[Round "4"]
[White "Kotofeyca"]
[Black "Ranindu2003"]
[Result "0-1"]
[WhiteElo "2353"]
[BlackElo "2613"]
[TimeControl "180+1"]
[EndTime "10:39:15 PDT"]
[Termination "Ranindu2003 won by resignation"]

1. d4 {[%clk 0:02:23.7]} 1... Nf6 {[%clk 0:02:59.3]} 2. c4 {[%clk 0:02:23.7]}
2... e6 {[%clk 0:02:59.5]} 3. Nf3 {[%clk 0:02:23.7]} 3... d5 {[%clk 0:02:59.7]}
4. Nc3 {[%clk 0:02:23.1]} 4... dxc4 {[%clk 0:03:00]} 5. e4 {[%clk 0:02:22.4]}
5... Bb4 {[%clk 0:03:00.6]} 6. e5 {[%clk 0:02:21.8]} 6... Nd5 {[%clk 0:03:00.1]}
7. Bd2 {[%clk 0:02:22]} 7... c5 {[%clk 0:02:58.4]} 8. Bxc4 {[%clk 0:02:16.1]}
8... cxd4 {[%clk 0:02:56.8]} 9. Nxd5 {[%clk 0:01:58.9]} 9... Bxd2+ {[%clk
0:02:51.2]} 10. Qxd2 {[%clk 0:01:59.8]} 10... exd5 {[%clk 0:02:51.1]} 11. Bb5+
{[%clk 0:01:59]} 11... Bd7 {[%clk 0:02:48.1]} 12. Nxd4 {[%clk 0:01:57.2]} 12...
O-O {[%clk 0:02:46.2]} 13. O-O {[%clk 0:01:53.8]} 13... Re8 {[%clk 0:02:45.2]}
14. Rfe1 {[%clk 0:01:49.9]} 14... Qb6 {[%clk 0:02:44.5]} 15. Bxd7 {[%clk
0:01:43.4]} 15... Nxd7 {[%clk 0:02:45.4]} 16. f4 {[%clk 0:01:43.7]} 16... Nc5
{[%clk 0:02:42.5]} 17. Kh1 {[%clk 0:01:37.4]} 17... Ne4 {[%clk 0:02:41.6]} 18.
Rxe4 {[%clk 0:01:34]} 18... dxe4 {[%clk 0:02:42.5]} 19. Re1 {[%clk 0:01:34]}
19... Red8 {[%clk 0:02:30.6]} 20. Rxe4 {[%clk 0:01:32.8]} 20... Rac8 {[%clk
0:02:21.9]} 21. b3 {[%clk 0:01:17.4]} 21... Rd5 {[%clk 0:02:15.6]} 22. Qe3
{[%clk 0:01:00.2]} 22... Rcd8 {[%clk 0:02:08.1]} 23. Nf3 {[%clk 0:00:57.6]}
23... Rd1+ {[%clk 0:02:06.6]} 24. Ne1 {[%clk 0:00:57.7]} 24... Qxe3 {[%clk
0:01:46.5]} 25. Rxe3 {[%clk 0:00:58.6]} 25... R8d3 {[%clk 0:01:42.6]} 26. Re4
{[%clk 0:00:54.7]} 26... Rd4 {[%clk 0:01:42.6]} 27. Re2 {[%clk 0:00:48.9]} 27...
Rxf4 {[%clk 0:01:40.8]} 28. Kg1 {[%clk 0:00:49]} 28... g6 {[%clk 0:01:38.2]} 29.
h3 {[%clk 0:00:46.4]} 29... h5 {[%clk 0:01:37.1]} 30. e6 {[%clk 0:00:41]} 30...
fxe6 {[%clk 0:01:36.2]} 31. Rxe6 {[%clk 0:00:41.9]} 31... Kf7 {[%clk 0:01:35.9]}
32. Re3 {[%clk 0:00:40]} 32... Rf6 {[%clk 0:01:35.6]} 33. Kh2 {[%clk 0:00:38.6]}
33... Rd2 {[%clk 0:01:31.7]} 34. Nd3 {[%clk 0:00:35.7]} 34... Rxa2 {[%clk
0:01:29.1]} 35. Ne5+ {[%clk 0:00:35.8]} 35... Kg7 {[%clk 0:01:26.6]} 36. Nd7
{[%clk 0:00:36]} 36... Rff2 {[%clk 0:01:24.5]} 37. Rg3 {[%clk 0:00:33.6]} 37...
Rae2 {[%clk 0:01:17.4]} 38. h4 {[%clk 0:00:32.6]} 38... b5 {[%clk 0:01:14.9]}
39. Kh3 {[%clk 0:00:29.1]} 39... b4 {[%clk 0:01:13]} 40. Nc5 {[%clk 0:00:28.9]}
40... Rc2 {[%clk 0:01:10.1]} 41. Ne6+ {[%clk 0:00:25.6]} 41... Kf6 {[%clk
0:01:01.4]} 42. Nd4 {[%clk 0:00:26.1]} 42... Rc3 {[%clk 0:01:00.8]} 43. Nf3
{[%clk 0:00:18.8]} 43... Rxb3 {[%clk 0:01:00.2]} 44. Rg5 {[%clk 0:00:18.7]}
44... Rbxf3+ {[%clk 0:00:58.1]} 45. gxf3 {[%clk 0:00:17.9]} 45... Rxf3+ {[%clk
0:00:59]} 46. Kg2 {[%clk 0:00:18.4]} 46... Rf5 {[%clk 0:00:59.9]} 47. Rg3 {[%clk
0:00:18.1]} 47... a5 {[%clk 0:00:58.8]} 48. Rd3 {[%clk 0:00:18.1]} 48... Rb5
{[%clk 0:00:57.5]} 0-1

[Event "*** SCC Grand Prix: Titled Tuesday Blitz"]
[Site "Chess.com"]
[Date "2020.10.13"]
[Round "4"]
[White "pavelalexandru07"]
[Black "akanga001"]
[Result "1-0"]
[WhiteElo "2232"]
[BlackElo "1837"]
[TimeControl "180+1"]
[EndTime "10:39:15 PDT"]
[Termination "pavelalexandru07 won by checkmate"]

1. e4 {[%clk 0:02:55.9]} 1... c6 {[%clk 0:02:59.8]} 2. d4 {[%clk 0:02:54]} 2...
d5 {[%clk 0:03:00.7]} 3. e5 {[%clk 0:02:50.3]} 3... e6 {[%clk 0:02:57.8]} 4. Nf3
{[%clk 0:02:48.6]} 4... c5 {[%clk 0:02:53.9]} 5. Be3 {[%clk 0:02:38.8]} 5... Qb6
{[%clk 0:02:49.6]} 6. b3 {[%clk 0:02:21.4]} 6... Bd7 {[%clk 0:02:49.1]} 7. c3
{[%clk 0:02:16.8]} 7... Nc6 {[%clk 0:02:41.3]} 8. Be2 {[%clk 0:02:13.6]} 8...
cxd4 {[%clk 0:02:41.1]} 9. cxd4 {[%clk 0:00:56.6]} 9... Rc8 {[%clk 0:02:36.1]}
10. O-O {[%clk 0:00:37.1]} 10... Nb4 {[%clk 0:02:35.8]} 11. Nbd2 {[%clk
0:00:37.1]} 11... Nc2 {[%clk 0:02:33]} 12. Rc1 {[%clk 0:00:37]} 12... Nxe3
{[%clk 0:02:30]} 13. fxe3 {[%clk 0:00:37.2]} 13... Ba3 {[%clk 0:02:21.9]} 14.
Rxc8+ {[%clk 0:00:36.5]} 14... Bxc8 {[%clk 0:02:21.7]} 15. Qc2 {[%clk
0:00:35.7]} 15... Ne7 {[%clk 0:02:20.2]} 16. Ng5 {[%clk 0:00:34.2]} 16... Nf5
{[%clk 0:02:05.6]} 17. Qxc8+ {[%clk 0:00:22.9]} 17... Qd8 {[%clk 0:02:01.4]} 18.
Qxd8+ {[%clk 0:00:21.9]} 18... Kxd8 {[%clk 0:02:02.3]} 19. Nxf7+ {[%clk
0:00:22.5]} 19... Ke7 {[%clk 0:02:00.8]} 20. Nxh8 {[%clk 0:00:22.9]} 20... Nh6
{[%clk 0:01:58.7]} 21. Bh5 {[%clk 0:00:19.3]} 21... g6 {[%clk 0:01:57.4]} 22.
Bxg6 {[%clk 0:00:18.5]} 22... hxg6 {[%clk 0:01:56.3]} 23. Nxg6+ {[%clk
0:00:18.9]} 23... Kd7 {[%clk 0:01:55.2]} 24. Nf8+ {[%clk 0:00:18.2]} 24... Bxf8
{[%clk 0:01:53.4]} 25. Rxf8 {[%clk 0:00:17.4]} 25... Ke7 {[%clk 0:01:53.3]} 26.
Rf6 {[%clk 0:00:17.1]} 26... Ng8 {[%clk 0:01:51.7]} 27. Rf4 {[%clk 0:00:16.5]}
27... Nh6 {[%clk 0:00:40.3]} 28. g4 {[%clk 0:00:15.3]} 28... b5 {[%clk
0:00:38.3]} 29. h4 {[%clk 0:00:14.6]} 29... a5 {[%clk 0:00:37]} 30. Kg2 {[%clk
0:00:14.9]} 30... a4 {[%clk 0:00:33.6]} 31. Kg3 {[%clk 0:00:14.1]} 31... axb3
{[%clk 0:00:32.5]} 32. axb3 {[%clk 0:00:15]} 32... b4 {[%clk 0:00:32]} 33. h5
{[%clk 0:00:15.1]} 33... Nf7 {[%clk 0:00:31.2]} 34. Kh4 {[%clk 0:00:15.4]} 34...
Kf8 {[%clk 0:00:27.5]} 35. g5 {[%clk 0:00:14.5]} 35... Kg7 {[%clk 0:00:27.7]}
36. g6 {[%clk 0:00:14.7]} 36... Nh6 {[%clk 0:00:27.7]} 37. Kg5 {[%clk
0:00:14.9]} 37... Ng8 {[%clk 0:00:26]} 38. Rf7+ {[%clk 0:00:14.4]} 38... Kh8
{[%clk 0:00:22.8]} 39. Rh7# {[%clk 0:00:15.3]} 1-0

[Event "*** SCC Grand Prix: Titled Tuesday Blitz"]
[Site "Chess.com"]
[Date "2020.10.13"]
[Round "4"]
[White "Fischerev7"]
[Black "Kapibara_Warri0r"]
[Result "1-0"]
[WhiteElo "2247"]
[BlackElo "2078"]
[TimeControl "180+1"]
[EndTime "10:39:16 PDT"]
[Termination "Fischerev7 won by resignation"]

1. e4 {[%clk 0:03:00.9]} 1... c5 {[%clk 0:02:57.1]} 2. Nf3 {[%clk 0:02:59.2]}
2... e6 {[%clk 0:02:57.1]} 3. d4 {[%clk 0:02:59.2]} 3... cxd4 {[%clk 0:02:57.7]}
4. Nxd4 {[%clk 0:02:59.4]} 4... Nf6 {[%clk 0:02:58.3]} 5. Nc3 {[%clk 0:02:59.2]}
5... Nc6 {[%clk 0:02:59]} 6. a3 {[%clk 0:02:58.6]} 6... Be7 {[%clk 0:02:45.7]}
7. Be3 {[%clk 0:02:55]} 7... O-O {[%clk 0:02:44.8]} 8. Be2 {[%clk 0:02:54.4]}
8... d5 {[%clk 0:02:44.3]} 9. exd5 {[%clk 0:02:52.5]} 9... Nxd5 {[%clk
0:02:43.3]} 10. Nxd5 {[%clk 0:02:51.1]} 10... exd5 {[%clk 0:02:43]} 11. O-O
{[%clk 0:02:50]} 11... Bf6 {[%clk 0:02:41.5]} 12. c3 {[%clk 0:02:49.4]} 12...
Be6 {[%clk 0:02:36.3]} 13. Bf3 {[%clk 0:02:46.7]} 13... Rc8 {[%clk 0:02:26]} 14.
Re1 {[%clk 0:02:46.2]} 14... Qd7 {[%clk 0:02:20.5]} 15. Nxc6 {[%clk 0:02:33.3]}
15... bxc6 {[%clk 0:02:19.5]} 16. Bc5 {[%clk 0:02:21.5]} 16... Be7 {[%clk
0:02:17.6]} 17. Qd4 {[%clk 0:02:16.1]} 17... a6 {[%clk 0:01:53.4]} 18. b4 {[%clk
0:02:13.4]} 18... Bf6 {[%clk 0:01:49.5]} 19. Qd3 {[%clk 0:02:07]} 19... Rfe8
{[%clk 0:01:45.7]} 20. Rac1 {[%clk 0:01:53.8]} 20... Bf5 {[%clk 0:01:43.2]} 21.
Qxa6 {[%clk 0:01:42.7]} 21... Rxe1+ {[%clk 0:01:38.1]} 22. Rxe1 {[%clk
0:01:43.6]} 22... Bxc3 {[%clk 0:01:29.8]} 23. Re7 {[%clk 0:01:43.4]} 23... Qd8
{[%clk 0:01:29.3]} 24. Qb7 {[%clk 0:01:21.1]} 24... Be6 {[%clk 0:01:25.7]} 25.
Bb6 {[%clk 0:00:42.9]} 25... Qf8 {[%clk 0:01:12.3]} 26. h3 {[%clk 0:00:26.2]}
26... Bf6 {[%clk 0:01:05.5]} 27. Rc7 {[%clk 0:00:25.2]} 27... Rxc7 {[%clk
0:00:55.1]} 28. Qxc7 {[%clk 0:00:26.1]} 28... Qe8 {[%clk 0:00:52.8]} 29. a4
{[%clk 0:00:22]} 29... Bd7 {[%clk 0:00:51]} 30. g3 {[%clk 0:00:15.2]} 30... d4
{[%clk 0:00:48]} 31. Kg2 {[%clk 0:00:14.5]} 31... Qe6 {[%clk 0:00:36.3]} 32. Bg4
{[%clk 0:00:13.8]} 32... Qd5+ {[%clk 0:00:32.8]} 33. Bf3 {[%clk 0:00:13.8]}
33... Qe6 {[%clk 0:00:32.2]} 34. Qb8+ {[%clk 0:00:13.1]} 34... Bc8 {[%clk
0:00:31.5]} 35. Bg4 {[%clk 0:00:12.9]} 35... Qe4+ {[%clk 0:00:28.5]} 36. Kh2
{[%clk 0:00:13]} 36... h6 {[%clk 0:00:25.4]} 37. Qxc8+ {[%clk 0:00:13.3]} 37...
Kh7 {[%clk 0:00:21.5]} 38. Bf5+ {[%clk 0:00:13.8]} 1-0